fUST/lending_fUST_20250912
["ID","MTS","AMOUNT","RATE_DAILY","PERIOD"]
[385034368,1757649032548,-480.0,0.00014228,2]
[385034370,1757649032556,-480.0,0.00014228,2]
[385034372,1757649032565,-480.0,0.00014228,2]
[385034374,1757649032575,-480.0,0.00014228,2]
[385034376,1757649032584,-480.0,0.00014228,2]
[385034378,1757649032592,-480.0,0.00014228,2]
[385034380,1757649032602,-480.0,0.00014228,2]
[385034382,1757649032611,-480.0,0.00014228,2]
[385034384,1757649032620,-480.0,0.00014228,2]
[385034386,1757649032629,-480.0,0.00014228,2]
[385034388,1757649032639,-480.0,0.00014228,2]
[385034390,1757649032648,-480.0,0.00014228,2]
[385034392,1757649032657,-480.0,0.00014228,2]
[385034394,1757649032666,-480.0,0.00014228,2]
[385034396,1757649032675,-31.56832717,0.00014228,2]
[385034398,1757649037957,-453.28,0.00014227,2]
[385034399,1757649037967,-448.43167283,0.00014228,2]
[385034400,1757649037976,-480.0,0.00014228,2]
[385034401,1757649037985,-480.0,0.00014228,2]
[385034402,1757649037996,-483.13134201,0.00014228,2]
[385034403,1757649038007,-480.0,0.00014228,2]
[385034404,1757649038017,-480.0,0.00014228,2]
[385034405,1757649038027,-480.0,0.00014228,2]
[385034406,1757649038036,-480.0,0.00014228,2]
[385034407,1757649038046,-480.0,0.00014228,2]
[385034408,1757649038056,-480.0,0.00014228,2]
[385034409,1757649038069,-2031.88,0.00014228,2]
[385034410,1757649038079,-480.0,0.00014228,2]
[385034411,1757649038087,-480.0,0.00014228,2]
[385034412,1757649038096,-482.04996982,0.00014228,2]
[385034413,1757649038105,-957.8,0.00014228,2]
[385034414,1757649038115,-480.0,0.00014228,2]
[385034415,1757649038125,-480.0,0.00014228,2]
[385034416,1757649038134,-599.82,0.00014228,2]
[385034417,1757649038144,-480.0,0.00014228,2]
[385034418,1757649038155,-4401.8752711,0.00014228,2]
[385034419,1757649038164,-160.38104857,0.00014228,2]
[385034420,1757649038173,-171.58838794,0.00014228,2]
[385034421,1757649038182,-152.36633414,0.00014228,2]
[385034422,1757649038191,-500.0,0.00014228,2]
[385034423,1757649038200,-169.6502318,0.00014228,2]
[385034424,1757649038210,-500.0,0.00014228,2]
[385034425,1757649038221,-567.92205289,0.00014228,2]
[385034426,1757649038231,-500.0,0.00014228,2]
[385034427,1757649038240,-500.0,0.00014228,2]
[385034428,1757649038249,-500.0,0.00014228,2]
[385034429,1757649038258,-500.0,0.00014228,2]
[385034430,1757649038268,-22779.823689,0.00014229,2]
[385034431,1757649038280,-1974.79665833,0.00014229,2]
[385034601,1757649043076,-152.62793451,0.00014128,2]
[385034602,1757649043085,-149.37206549,0.00014229,2]
[385034632,1757649046130,-480.0,0.00014227,2]
[385034633,1757649046146,-480.0,0.00014227,2]
[385034636,1757649046155,-28066.8865,0.00014229,2]
[385035205,1757649424052,152.40059947,0.00013667,2]
[385035207,1757649483863,152.40059948,0.00013667,2]
[385035208,1757649543815,152.40059947,0.00013667,2]
[385035211,1757649664169,152.40059948,0.00013667,2]
[385035212,1757649726752,10000.0,0.00013128,2]
[385035213,1757649784075,152.40059947,0.00013667,2]
[385035215,1757649824640,499.871769,0.00013699,2]
[385035220,1757650080539,-235.67679418,0.00014027,2]
[385035221,1757650081069,-139.35532902,0.00014027,2]
[385035222,1757650081091,-96.32146516,0.00014125,2]
[385035267,1757650238000,-310.50088475,0.00014125,2]
[385035284,1757650238514,-169.49911525,0.00014125,2]
[385035285,1757650238524,-1200.0,0.00014125,2]
[385035286,1757650238533,-300.0,0.00014125,2]
[385035287,1757650238544,-500.0,0.00014125,2]
[385035288,1757650238554,-340.8802281,0.00014125,2]
[385035289,1757650238564,-314.84932216,0.00014125,2]
[385035290,1757650238573,-649.79,0.00014126,2]
[385035291,1757650238582,-480.0,0.00014126,2]
[385035292,1757650238592,-480.0,0.00014126,2]
[385035293,1757650238602,-480.0,0.00014126,2]
[385035294,1757650238611,-480.0,0.00014126,2]
[385035295,1757650238620,-480.0,0.00014126,2]
[385035296,1757650238629,-480.0,0.00014126,2]
[385035297,1757650238638,-480.0,0.00014126,2]
[385035298,1757650238648,-480.0,0.00014126,2]
[385035299,1757650238657,-480.0,0.00014126,2]
[385035300,1757650238666,-480.0,0.00014126,2]
[385035301,1757650238675,-481.87174669,0.00014126,2]
[385035302,1757650238686,-480.0,0.00014126,2]
[385035303,1757650238695,-480.0,0.00014126,2]
[385035304,1757650238704,-171.95629139,0.00014126,2]
[385035305,1757650238714,-480.0,0.00014126,2]
[385035306,1757650238723,-193.64975211,0.00014126,2]
[385035307,1757650238732,-480.0,0.00014126,2]
[385035308,1757650238741,-480.0,0.00014126,2]
[385035309,1757650238750,-480.0,0.00014126,2]
[385035310,1757650238759,-480.0,0.00014126,2]
[385035311,1757650238768,-480.0,0.00014126,2]
[385035312,1757650238778,-485.2206668,0.00014126,2]
[385035313,1757650238787,-480.0,0.00014126,2]
[385035314,1757650238796,-480.0,0.00014126,2]
[385035315,1757650238805,-480.0,0.00014126,2]
[385035316,1757650238814,-480.0,0.00014126,2]
[385035317,1757650238823,-486.71256684,0.00014126,2]
[385035318,1757650238832,-485.04289125,0.00014126,2]
[385035319,1757650238841,-488.5618906,0.00014126,2]
[385035320,1757650238850,-480.0,0.00014126,2]
[385035321,1757650238859,-482.56029268,0.00014126,2]
[385035322,1757650238868,-480.0,0.00014126,2]
[385035323,1757650238877,-480.0,0.00014126,2]
[385035324,1757650238886,-480.0,0.00014126,2]
[385035325,1757650238895,-490.86143636,0.00014126,2]
[385035326,1757650238904,-480.0,0.00014126,2]
[385035327,1757650238913,-480.0,0.00014126,2]
[385035328,1757650238922,-480.0,0.00014126,2]
[385035329,1757650238931,-480.0,0.00014126,2]
[385035330,1757650238940,-47473.36541626,0.00014126,2]
[385035331,1757650238949,-234.83588746,0.00014127,2]
[385035332,1757650238958,-487.41515589,0.00014127,2]
[385035333,1757650238967,-480.0,0.00014127,2]
[385035334,1757650238976,-480.0,0.00014127,2]
[385035335,1757650238985,-485.23082794,0.00014127,2]
[385035336,1757650238994,-480.0,0.00014127,2]
[385035337,1757650239003,-541.36133531,0.00014127,2]
[385035338,1757650239012,-484.67587361,0.00014127,2]
[385035339,1757650239021,-480.0,0.00014127,2]
[385035340,1757650239030,-486.86365684,0.00014127,2]
[385035341,1757650239040,-480.0,0.00014127,2]
[385035342,1757650239049,-480.0,0.00014127,2]
[385035343,1757650239059,-485.51451885,0.00014127,2]
[385035344,1757650239068,-480.0,0.00014127,2]
[385035345,1757650239077,-480.0,0.00014127,2]
[385035346,1757650239086,-482.77596874,0.00014127,2]
[385035347,1757650239095,-484.13609026,0.00014127,2]
[385035348,1757650239104,-480.0,0.00014127,2]
[385035349,1757650239113,-480.0,0.00014127,2]
[385035350,1757650239122,-483.01800159,0.00014127,2]
[385035351,1757650239131,-484.86108773,0.00014127,2]
[385035352,1757650239140,-482.22297251,0.00014127,2]
[385035353,1757650239149,-483.46028147,0.00014127,2]
[385035354,1757650239158,-495.28999692,0.00014127,2]
[385035355,1757650239167,-416.56221726,0.00014127,2]
[385035356,1757650239176,-482.77036129,0.00014127,2]
[385035357,1757650239185,-488.79934972,0.00014127,2]
[385035358,1757650239194,-480.0,0.00014127,2]
[385035359,1757650239203,-480.0,0.00014127,2]
[385035360,1757650239213,-480.0,0.00014127,2]
[385035361,1757650239222,-488.66203036,0.00014127,2]
[385035362,1757650239232,-480.0,0.00014127,2]
[385035363,1757650239241,-480.0,0.00014127,2]
[385035364,1757650239251,-494.12786555,0.00014127,2]
[385035365,1757650239260,-482.66324529,0.00014127,2]
[385035366,1757650239269,-172.15728703,0.00014127,2]
[385035367,1757650239278,-480.0,0.00014127,2]
[385035368,1757650239287,-480.0,0.00014127,2]
[385035369,1757650239296,-480.0,0.00014127,2]
[385035370,1757650239305,-484.37777663,0.00014127,2]
[385035371,1757650239314,-480.0,0.00014127,2]
[385035372,1757650239324,-484.88734171,0.00014127,2]
[385035373,1757650239334,-233.85881518,0.00014127,2]
[385035374,1757650239346,-480.0,0.00014127,2]
[385035375,1757650239355,-486.73967394,0.00014127,2]
[385035376,1757650239364,-480.0,0.00014127,2]
[385035377,1757650239375,-487.53155803,0.00014127,2]
[385035378,1757650239384,-486.3511237,0.00014127,2]
[385035379,1757650239392,-484.07400614,0.00014127,2]
[385035380,1757650239401,-480.0,0.00014127,2]
[385035381,1757650239411,-480.0,0.00014127,2]
[385035382,1757650239421,-482.52956425,0.00014127,2]
[385035383,1757650239431,-480.0,0.00014127,2]
[385035384,1757650239440,-480.0,0.00014127,2]
[385035385,1757650239449,-480.0,0.00014127,2]
[385035386,1757650239458,-480.0,0.00014127,2]
[385035387,1757650239468,-494.77565794,0.00014127,2]
[385035388,1757650239478,-480.0,0.00014127,2]
[385035389,1757650239488,-480.0,0.00014127,2]
[385035390,1757650239498,-480.0,0.00014127,2]
[385035391,1757650239507,-490.32040738,0.00014127,2]
[385035392,1757650239517,-480.0,0.00014127,2]
[385035393,1757650239527,-480.0,0.00014127,2]
[385035394,1757650239536,-505.92431692,0.00014127,2]
[385035395,1757650239547,-488.10389265,0.00014127,2]
[385035396,1757650239556,-496.87292785,0.00014127,2]
[385035397,1757650239566,-482.45430888,0.00014127,2]
[385035398,1757650239575,-480.0,0.00014127,2]
[385035399,1757650239584,-2276.07749229,0.00014127,2]
[385035400,1757650239593,-482.59655625,0.00014127,2]
[385035401,1757650239602,-480.0,0.00014127,2]
[385035402,1757650239611,-5135.52114961,0.00014127,2]
[385035403,1757650239621,-480.0,0.00014127,2]
[385035404,1757650239630,-480.0,0.00014127,2]
[385035405,1757650239639,-480.0,0.00014127,2]
[385035406,1757650239648,-480.0,0.00014127,2]
[385035407,1757650239657,-486.98357216,0.00014127,2]
[385035408,1757650239667,-263.33274518,0.00014127,2]
[385035409,1757650239677,-480.0,0.00014127,2]
[385035410,1757650239686,-483.17770178,0.00014127,2]
[385035411,1757650239696,-486.26986262,0.00014127,2]
[385035412,1757650239705,-480.0,0.00014127,2]
[385035413,1757650239714,-483.84924069,0.00014127,2]
[385035414,1757650239724,-488.53126977,0.00014127,2]
[385035415,1757650239734,-480.0,0.00014127,2]
[385035416,1757650239743,-480.0,0.00014127,2]
[385035417,1757650239753,-480.0,0.00014127,2]
[385035418,1757650239762,-483.86078602,0.00014127,2]
[385035419,1757650239772,-559.49320939,0.00014127,2]
[385035421,1757650239781,-480.0,0.00014127,2]
[385035423,1757650239790,-480.0,0.00014127,2]
[385035425,1757650239800,-486.32349585,0.00014127,2]
[385035427,1757650239809,-480.0,0.00014127,2]
[385035429,1757650239819,-272.38772672,0.00014127,2]
[385035431,1757650239828,-490.39644181,0.00014127,2]
[385035433,1757650239837,-480.0,0.00014127,2]
[385035435,1757650239846,-480.0,0.00014127,2]
[385035437,1757650239856,-244.42657025,0.00014127,2]
[385035439,1757650239865,-480.0,0.00014127,2]
[385035441,1757650239874,-482.15777201,0.00014127,2]
[385035443,1757650239883,-480.0,0.00014127,2]
[385035445,1757650239892,-480.0,0.00014127,2]
[385035447,1757650239902,-489.78538899,0.00014127,2]
[385035449,1757650239911,-480.0,0.00014127,2]
[385035451,1757650239920,-484.29398583,0.00014127,2]
[385035453,1757650239929,-1443.18,0.00014127,2]
[385035455,1757650239938,-480.0,0.00014127,2]
[385035457,1757650239947,-480.0,0.00014127,2]
[385035459,1757650239956,-480.0,0.00014127,2]
[385035461,1757650239965,-492.54342896,0.00014127,2]
[385035463,1757650239974,-480.0,0.00014127,2]
[385035465,1757650239984,-480.0,0.00014127,2]
[385035467,1757650239993,-580.64045462,0.00014127,2]
[385035469,1757650240002,-495.81771429,0.00014127,2]
[385035471,1757650240012,-549.77072652,0.00014127,2]
[385035472,1757650240022,-483.18488262,0.00014127,2]
[385035474,1757650240032,-1006.95736075,0.00014127,2]
[385035476,1757650240041,-480.0,0.00014127,2]
[385035478,1757650240051,-480.0,0.00014127,2]
[385035480,1757650240060,-480.0,0.00014127,2]
[385035481,1757650240069,-480.0,0.00014127,2]
[385035482,1757650240079,-485.54378534,0.00014127,2]
[385035484,1757650240088,-480.0,0.00014127,2]
[385035486,1757650240098,-480.0,0.00014127,2]
[385035487,1757650240107,-480.0,0.00014127,2]
[385035488,1757650240115,-480.0,0.00014127,2]
[385035489,1757650240124,-487.62736065,0.00014127,2]
[385035490,1757650240133,-480.0,0.00014127,2]
[385035491,1757650240142,-480.0,0.00014127,2]
[385035492,1757650240151,-484.16973006,0.00014127,2]
[385035493,1757650240160,-480.0,0.00014127,2]
[385035494,1757650240169,-480.0,0.00014127,2]
[385035495,1757650240288,-500.00638006,0.00014128,2]
[385035496,1757650240298,-488.58350725,0.00014128,2]
[385035497,1757650240307,-480.0,0.00014128,2]
[385035498,1757650240316,-480.0,0.00014128,2]
[385035499,1757650240326,-837.24,0.00014128,2]
[385035500,1757650240338,-480.0,0.00014128,2]
[385035501,1757650240348,-480.0,0.00014128,2]
[385035502,1757650240357,-157.11565503,0.00014128,2]
[385035503,1757650240367,-157.0,0.00014128,2]
[385035504,1757650240377,-157.0,0.00014128,2]
[385035505,1757650240386,-480.0,0.00014128,2]
[385035506,1757650240395,-480.0,0.00014128,2]
[385035507,1757650240407,-218.79178046,0.00014128,2]
[385035508,1757650240417,-500.0,0.00014128,2]
[385035509,1757650240426,-157.0,0.00014128,2]
[385035510,1757650240435,-480.0,0.00014128,2]
[385035511,1757650240444,-157.0,0.00014128,2]
[385035512,1757650240453,-157.0,0.00014128,2]
[385035513,1757650240464,-480.0,0.00014128,2]
[385035514,1757650240473,-480.0,0.00014128,2]
[385035515,1757650240482,-2941.89,0.00014128,2]
[385035516,1757650240491,-480.0,0.00014128,2]
[385035517,1757650240500,-480.0,0.00014128,2]
[385035518,1757650240509,-355709.16403877,0.00014129,2]
[385035519,1757650240519,-481.975807,0.00014227,2]
[385035520,1757650240528,-568.16866517,0.00014227,2]
[385035521,1757650240540,-480.0,0.00014227,2]
[385035522,1757650240549,-480.0,0.00014227,2]
[385035523,1757650240558,-483.93847967,0.00014227,2]
[385035524,1757650240567,-484.71778429,0.00014227,2]
[385035525,1757650240577,-480.0,0.00014227,2]
[385035526,1757650240587,-480.0,0.00014227,2]
[385035527,1757650240596,-480.0,0.00014227,2]
[385035528,1757650240605,-482.80232532,0.00014227,2]
[385035529,1757650240614,-483.17617044,0.00014227,2]
[385035530,1757650240623,-480.0,0.00014227,2]
[385035531,1757650240636,-480.0,0.00014227,2]
[385035532,1757650240652,-480.0,0.00014227,2]
[385035533,1757650240662,-480.0,0.00014227,2]
[385035534,1757650240672,-486.3568742,0.00014227,2]
[385035535,1757650240681,-480.0,0.00014227,2]
[385035536,1757650240691,-352.12125989,0.00014227,2]
[385035537,1757650240701,-480.0,0.00014227,2]
[385035538,1757650240711,-482.08986602,0.00014227,2]
[385035539,1757650240720,-480.0,0.00014227,2]
[385035540,1757650240729,-483.51871798,0.00014227,2]
[385035541,1757650240738,-480.0,0.00014227,2]
[385035542,1757650240747,-480.0,0.00014227,2]
[385035543,1757650240759,-481.88380941,0.00014227,2]
[385035544,1757650240767,-483.13379239,0.00014227,2]
[385035545,1757650240777,-480.0,0.00014227,2]
[385035546,1757650240787,-555.22001808,0.00014227,2]
[385035547,1757650240795,-483.97618862,0.00014227,2]
[385035548,1757650240805,-483.175945,0.00014227,2]
[385035549,1757650240816,-481.78436156,0.00014227,2]
[385035550,1757650240826,-485.87945724,0.00014227,2]
[385035551,1757650240837,-382.36415016,0.00014227,2]
[385035552,1757650240849,-480.0,0.00014227,2]
[385035553,1757650240859,-483.18616691,0.00014227,2]
[385035554,1757650240870,-480.0,0.00014227,2]
[385035555,1757650240879,-482.26275234,0.00014227,2]
[385035556,1757650240892,-480.0,0.00014227,2]
[385035557,1757650240903,-480.0,0.00014227,2]
[385035558,1757650240912,-480.0,0.00014227,2]
[385035559,1757650240923,-480.0,0.00014227,2]
[385035560,1757650240933,-480.0,0.00014227,2]
[385035561,1757650240943,-480.0,0.00014227,2]
[385035562,1757650240954,-480.0,0.00014227,2]
[385035563,1757650240963,-436.52146158,0.00014227,2]
[385035564,1757650240974,-480.0,0.00014227,2]
[385035565,1757650240985,-502.30344361,0.00014227,2]
[385035566,1757650240995,-480.0,0.00014227,2]
[385035567,1757650241006,-480.0,0.00014227,2]
[385035568,1757650241015,-480.0,0.00014227,2]
[385035569,1757650241026,-480.0,0.00014227,2]
[385035570,1757650241036,-480.0,0.00014227,2]
[385035571,1757650241045,-480.0,0.00014227,2]
[385035572,1757650241054,-480.0,0.00014227,2]
[385035573,1757650241063,-480.0,0.00014227,2]
[385035574,1757650241072,-480.0,0.00014227,2]
[385035575,1757650241081,-485.4952814,0.00014227,2]
[385035576,1757650241090,-480.0,0.00014227,2]
[385035577,1757650241099,-480.0,0.00014227,2]
[385035578,1757650241108,-590.17648891,0.00014227,2]
[385035579,1757650241117,-480.0,0.00014227,2]
[385035580,1757650241126,-480.0,0.00014227,2]
[385035581,1757650241135,-480.0,0.00014227,2]
[385035582,1757650241143,-480.0,0.00014227,2]
[385035583,1757650241152,-480.0,0.00014227,2]
[385035584,1757650241161,-480.0,0.00014227,2]
[385035585,1757650241170,-389.34820567,0.00014227,2]
[385035586,1757650241179,-480.0,0.00014227,2]
[385035587,1757650241188,-480.0,0.00014227,2]
[385035588,1757650241197,-480.0,0.00014227,2]
[385035589,1757650241207,-480.0,0.00014227,2]
[385035590,1757650241217,-480.0,0.00014227,2]
[385035591,1757650241228,-480.0,0.00014227,2]
[385035592,1757650241240,-480.0,0.00014227,2]
[385035593,1757650241250,-480.0,0.00014227,2]
[385035594,1757650241260,-480.0,0.00014227,2]
[385035595,1757650241270,-594.17745097,0.00014227,2]
[385035596,1757650241279,-480.0,0.00014227,2]
[385035597,1757650241288,-480.0,0.00014227,2]
[385035598,1757650241297,-480.0,0.00014227,2]
[385035599,1757650241306,-480.0,0.00014227,2]
[385035600,1757650241315,-480.0,0.00014227,2]
[385035601,1757650241326,-480.0,0.00014227,2]
[385035602,1757650241340,-480.0,0.00014228,2]
[385035603,1757650241349,-480.0,0.00014228,2]
[385035604,1757650241359,-480.0,0.00014228,2]
[385035605,1757650241371,-480.0,0.00014228,2]
[385035606,1757650241382,-480.0,0.00014228,2]
[385035607,1757650241392,-480.0,0.00014228,2]
[385035608,1757650241402,-480.0,0.00014228,2]
[385035609,1757650241411,-480.0,0.00014228,2]
[385035610,1757650241421,-480.0,0.00014228,2]
[385035611,1757650241431,-504.29214878,0.00014228,2]
[385035612,1757650241442,-480.0,0.00014228,2]
[385035613,1757650241451,-496.53524269,0.00014228,2]
[385035614,1757650241460,-480.0,0.00014228,2]
[385035615,1757650241469,-483.27881912,0.00014228,2]
[385035616,1757650241478,-480.0,0.00014228,2]
[385035617,1757650241487,-482.07594619,0.00014228,2]
[385035618,1757650241496,-480.0,0.00014228,2]
[385035619,1757650241505,-480.0,0.00014228,2]
[385035620,1757650241515,-480.0,0.00014228,2]
[385035621,1757650241524,-213.11346901,0.00014273,2]
[385035622,1757650241536,-500.29272305,0.00014273,2]
[385035623,1757650241546,-501.29234701,0.00014273,2]
[385035624,1757650241556,-500.0,0.00014273,2]
[385035625,1757650241566,-480.0,0.00014399,2]
[385035626,1757650241576,-649.79,0.000144,2]
[385035627,1757650241586,-480.0,0.000144,2]
[385035628,1757650241595,-480.0,0.000144,2]
[385035629,1757650241604,-480.0,0.000144,2]
[385035630,1757650241613,-480.0,0.000144,2]
[385035631,1757650241622,-480.0,0.000144,2]
[385035632,1757650241631,-480.0,0.000144,2]
[385035633,1757650241639,-480.0,0.000144,2]
[385035634,1757650241648,-486.88160834,0.000144,2]
[385035635,1757650241657,-492.11222958,0.000144,2]
[385035636,1757650241666,-480.0,0.000144,2]
[385035637,1757650241675,-480.0,0.000144,2]
[385035638,1757650241685,-490.20497562,0.000144,2]
[385035639,1757650241700,-480.0,0.000144,2]
[385035640,1757650241709,-480.0,0.000144,2]
[385035641,1757650241718,-480.0,0.000144,2]
[385035642,1757650241727,-480.0,0.000144,2]
[385035643,1757650241736,-480.0,0.000144,2]
[385035644,1757650241745,-278.03946091,0.000144,2]
[385035645,1757650241754,-480.0,0.000144,2]
[385035646,1757650241763,-480.0,0.000144,2]
[385035647,1757650241772,-480.0,0.000144,2]
[385035648,1757650241781,-480.0,0.000144,2]
[385035649,1757650241790,-480.0,0.00014401,2]
[385035650,1757650241800,-480.0,0.00014401,2]
[385035651,1757650241809,-244.8293057,0.00014401,2]
[385035652,1757650241819,-480.0,0.00014401,2]
[385035653,1757650241828,-480.0,0.00014401,2]
[385035654,1757650241837,-480.0,0.00014401,2]
[385035655,1757650241846,-480.0,0.00014401,2]
[385035656,1757650241855,-480.0,0.00014401,2]
[385035657,1757650241864,-480.0,0.00014401,2]
[385035658,1757650241873,-480.0,0.00014401,2]
[385035659,1757650241882,-491.84307653,0.00014401,2]
[385035660,1757650241891,-486.2020097,0.00014401,2]
[385035661,1757650241900,-265.94351585,0.00014401,2]
[385035662,1757650241909,-480.0,0.00014401,2]
[385035663,1757650241918,-480.0,0.00014401,2]
[385035664,1757650241927,-480.0,0.00014401,2]
[385035665,1757650241936,-480.0,0.00014401,2]
[385035666,1757650241945,-480.0,0.00014401,2]
[385035667,1757650241955,-480.0,0.00014401,2]
[385035668,1757650241964,-485.22085515,0.00014401,2]
[385035669,1757650241973,-480.0,0.00014401,2]
[385035670,1757650241982,-480.0,0.00014401,2]
[385035671,1757650241991,-480.0,0.00014401,2]
[385035672,1757650242000,-480.0,0.00014401,2]
[385035673,1757650242009,-480.0,0.00014401,2]
[385035674,1757650242018,-480.0,0.00014401,2]
[385035675,1757650242027,-480.0,0.00014401,2]
[385035676,1757650242036,-480.0,0.00014401,2]
[385035677,1757650242045,-491.20062485,0.00014401,2]
[385035678,1757650242055,-206.76830095,0.00014401,2]
[385035679,1757650242064,-480.0,0.00014401,2]
[385035680,1757650242073,-480.0,0.00014401,2]
[385035681,1757650242082,-480.0,0.00014401,2]
[385035682,1757650242091,-480.0,0.00014401,2]
[385035683,1757650242099,-480.0,0.00014401,2]
[385035684,1757650242108,-480.0,0.00014401,2]
[385035685,1757650242117,-480.0,0.00014401,2]
[385035686,1757650242126,-480.0,0.00014401,2]
[385035687,1757650242135,-521.61568342,0.00014401,2]
[385035688,1757650242144,-480.0,0.00014401,2]
[385035689,1757650242154,-480.0,0.00014401,2]
[385035690,1757650242164,-480.0,0.00014401,2]
[385035691,1757650242172,-480.0,0.00014401,2]
[385035692,1757650242182,-480.0,0.00014401,2]
[385035693,1757650242203,-1443.18,0.00014401,2]
[385035694,1757650242213,-458.6330068,0.00014401,2]
[385035695,1757650242222,-480.0,0.00014401,2]
[385035696,1757650242232,-485.83696625,0.00014401,2]
[385035697,1757650242241,-489.34940837,0.00014401,2]
[385035698,1757650242250,-489.33266888,0.00014401,2]
[385035699,1757650242260,-480.0,0.00014401,2]
[385035700,1757650242269,-480.0,0.00014401,2]
[385035701,1757650242280,-480.0,0.00014401,2]
[385035702,1757650242289,-480.0,0.00014401,2]
[385035703,1757650242298,-480.0,0.00014401,2]
[385035704,1757650242308,-248.63992709,0.00014401,2]
[385035705,1757650242317,-393.80868904,0.00014401,2]
[385035706,1757650242327,-480.0,0.00014401,2]
[385035707,1757650242339,-181.84,0.00014402,2]
[385035708,1757650242348,-157.0,0.00014402,2]
[385035709,1757650242357,-500.0,0.00014402,2]
[385035710,1757650242367,-157.0,0.00014402,2]
[385035711,1757650242377,-302.93562152,0.00014402,2]
[385035712,1757650242387,-480.0,0.00014402,2]
[385035713,1757650242398,-837.24,0.00014402,2]
[385035714,1757650242410,-480.0,0.00014402,2]
[385035715,1757650242420,-480.0,0.00014402,2]
[385035716,1757650242429,-480.0,0.00014402,2]
[385035717,1757650242438,-480.0,0.00014402,2]
[385035718,1757650242447,-2941.89,0.00014402,2]
[385035719,1757650242457,-480.0,0.00014402,2]
[385035720,1757650242466,-1000.0,0.00014425,2]
[385035721,1757650242475,-241.48512697,0.00014432,2]
[385035722,1757650242484,-480.0,0.00014501,2]
[385035723,1757650242494,-480.0,0.00014501,2]
[385035724,1757650242503,-483.38976661,0.00014501,2]
[385035725,1757650242512,-480.0,0.00014501,2]
[385035726,1757650242521,-480.0,0.00014501,2]
[385035728,1757650242532,-480.0,0.00014501,2]
[385035729,1757650242541,-480.0,0.00014501,2]
[385035730,1757650242551,-480.0,0.00014501,2]
[385035731,1757650242561,-583.19102658,0.00014501,2]
[385035732,1757650242570,-480.0,0.00014501,2]
[385035733,1757650242580,-480.0,0.00014501,2]
[385035734,1757650242589,-480.0,0.00014501,2]
[385035735,1757650242599,-355.44454232,0.00014501,2]
[385035736,1757650242608,-480.0,0.00014501,2]
[385035737,1757650242618,-565.81969064,0.00014501,2]
[385035738,1757650242627,-480.0,0.00014501,2]
[385035739,1757650242638,-504.88850377,0.00014501,2]
[385035740,1757650242648,-485.77387856,0.00014501,2]
[385035741,1757650242658,-480.0,0.00014501,2]
[385035742,1757650242669,-480.0,0.00014501,2]
[385035743,1757650242680,-480.0,0.00014501,2]
[385035744,1757650242690,-480.0,0.00014501,2]
[385035745,1757650242699,-480.0,0.00014501,2]
[385035746,1757650242710,-480.0,0.00014501,2]
[385035747,1757650242720,-480.0,0.00014501,2]
[385035748,1757650242730,-480.0,0.00014501,2]
[385035749,1757650242740,-480.0,0.00014501,2]
[385035750,1757650242749,-480.0,0.00014501,2]
[385035751,1757650242760,-480.0,0.00014501,2]